[Event "Titled Tuesday Blitz October 31 Early 2023"]
[White "Ilamparthi A R"]
[Black "Chinguun, Sumiya"]
[WhiteFideId "45015775"]
[BlackFideId "4902572"]
[WhiteElo "2930"]
[BlackElo "2677"]
[Result "1-0"]
[Round "10"]
[TimeControl "180+1"]
[Date "2023.10.31"]
[WhiteClock "0:02:19"]
[BlackClock "0:01:32"]
[Board "11"]

1. d4 {[%clk 0:03:00]}  Nf6 {[%clk 0:02:59]} 2. Nf3 {[%clk 0:03:01]}  g6 {[%clk 0:02:59]} 3. Bf4 {[%clk 0:03:01]}  Bg7 {[%clk 0:03:00]} 4. e3 {[%clk 0:03:01]}  O-O {[%clk 0:03:00]} 5. Be2 {[%clk 0:03:02]}  d6 {[%clk 0:03:00]} 6. h3 {[%clk 0:03:02]}  Nc6 {[%clk 0:03:00]} 7. O-O {[%clk 0:03:00]}  Nd7 {[%clk 0:03:01]} 8. Bh2 {[%clk 0:03:00]}  e5 {[%clk 0:03:01]} 9. c4 {[%clk 0:03:00]}  f5 {[%clk 0:03:00]} 10. Nc3 {[%clk 0:02:59]}  Qe8 {[%clk 0:02:57]} 11. Nd5 {[%clk 0:02:58]}  Qd8 {[%clk 0:02:53]} 12. b4 {[%clk 0:02:58]}  Ne7 {[%clk 0:02:40]} 13. dxe5 {[%clk 0:02:47]}  Nxe5 {[%clk 0:02:39]} 14. Rc1 {[%clk 0:02:42]}  Be6 {[%clk 0:02:37]} 15. Ng5 {[%clk 0:02:35]}  Bd7 {[%clk 0:02:34]} 16. c5 {[%clk 0:02:34]}  dxc5 {[%clk 0:02:31]} 17. Rxc5 {[%clk 0:02:20]}  c6 {[%clk 0:02:07]} 18. Nxe7+ {[%clk 0:02:19]}  Qxe7 {[%clk 0:02:05]} 19. Bxe5 {[%clk 0:02:19]}  Bxe5 {[%clk 0:01:54]} 20. Rxe5 {[%clk 0:02:20]}  Qxe5 {[%clk 0:01:54]} 21. Qxd7 {[%clk 0:02:20]}  Qh8 {[%clk 0:01:32]} 22. Bc4+ {[%clk 0:02:19]} 1-0


[Site "https://www.chess.com"]

[Event "Titled Tuesday Blitz October 31 Early 2023"]
[White "Paravyan, David"]
[Black "Alexandre, Anne Shopie Elizabeth"]
[WhiteFideId "4194985"]
[BlackFideId "11902418"]
[WhiteElo "3065"]
[BlackElo "2834"]
[Result "0-1"]
[Round "10"]
[TimeControl "180+1"]
[Date "2023.10.31"]
[WhiteClock "0:01:15"]
[BlackClock "0:00:16"]
[Board "12"]

1. e4 {[%clk 0:02:59]}  c6 {[%clk 0:03:00]} 2. d4 {[%clk 0:02:59]}  d5 {[%clk 0:03:01]} 3. Nd2 {[%clk 0:02:59]}  dxe4 {[%clk 0:03:01]} 4. Nxe4 {[%clk 0:03:00]}  Bf5 {[%clk 0:03:01]} 5. Ng3 {[%clk 0:03:00]}  Bg6 {[%clk 0:03:01]} 6. h4 {[%clk 0:03:00]}  h6 {[%clk 0:03:01]} 7. Nf3 {[%clk 0:03:01]}  Nd7 {[%clk 0:03:01]} 8. h5 {[%clk 0:03:01]}  Bh7 {[%clk 0:03:02]} 9. Bd3 {[%clk 0:03:02]}  Bxd3 {[%clk 0:03:02]} 10. Qxd3 {[%clk 0:03:03]}  Ngf6 {[%clk 0:03:03]} 11. Bd2 {[%clk 0:03:03]}  e6 {[%clk 0:03:02]} 12. O-O-O {[%clk 0:03:03]}  Be7 {[%clk 0:03:03]} 13. Kb1 {[%clk 0:03:03]}  Qb6 {[%clk 0:02:59]} 14. Nh4 {[%clk 0:03:03]}  O-O-O {[%clk 0:02:56]} 15. Rhe1 {[%clk 0:03:00]}  Bb4 {[%clk 0:02:51]} 16. c3 {[%clk 0:02:58]}  Bd6 {[%clk 0:02:52]} 17. Ngf5 {[%clk 0:02:32]}  exf5 {[%clk 0:02:44]} 18. Nxf5 {[%clk 0:02:33]}  Qc7 {[%clk 0:02:37]} 19. Nxg7 {[%clk 0:02:33]}  Rdg8 {[%clk 0:02:31]} 20. Nf5 {[%clk 0:02:32]}  Rxg2 {[%clk 0:02:30]} 21. Qc4 {[%clk 0:02:31]}  Rxf2 {[%clk 0:02:19]} 22. Rf1 {[%clk 0:02:22]}  Rxf1 {[%clk 0:02:07]} 23. Rxf1 {[%clk 0:02:22]}  Nxh5 {[%clk 0:02:00]} 24. Qxf7 {[%clk 0:02:21]}  Nhf6 {[%clk 0:01:39]} 25. Bxh6 {[%clk 0:02:20]}  Nd5 {[%clk 0:01:07]} 26. c4 {[%clk 0:02:18]}  N5b6 {[%clk 0:00:59]} 27. c5 {[%clk 0:02:16]}  Nxc5 {[%clk 0:00:54]} 28. dxc5 {[%clk 0:02:15]}  Bxc5 {[%clk 0:00:51]} 29. Qe6+ {[%clk 0:02:07]}  Qd7 {[%clk 0:00:51]} 30. Qe5 {[%clk 0:02:08]}  Qd3+ {[%clk 0:00:47]} 31. Kc1 {[%clk 0:02:08]}  Qxf1+ {[%clk 0:00:47]} 32. Kc2 {[%clk 0:02:08]}  Qc4+ {[%clk 0:00:46]} 33. Kb1 {[%clk 0:02:08]}  Rd8 {[%clk 0:00:44]} 34. Bc1 {[%clk 0:02:02]}  Bf8 {[%clk 0:00:42]} 35. a3 {[%clk 0:02:00]}  Qd3+ {[%clk 0:00:41]} 36. Ka1 {[%clk 0:01:59]}  Qd5 {[%clk 0:00:40]} 37. Qf6 {[%clk 0:01:53]}  Kb8 {[%clk 0:00:26]} 38. Bg5 {[%clk 0:01:41]}  Rc8 {[%clk 0:00:24]} 39. Qg6 {[%clk 0:01:36]}  Qd7 {[%clk 0:00:21]} 40. Bf6 {[%clk 0:01:35]}  Ka8 {[%clk 0:00:20]} 41. Bd4 {[%clk 0:01:35]}  Nd5 {[%clk 0:00:20]} 42. Ng3 {[%clk 0:01:29]}  b6 {[%clk 0:00:20]} 43. Ne4 {[%clk 0:01:27]}  Kb7 {[%clk 0:00:21]} 44. Bg1 {[%clk 0:01:21]}  Re8 {[%clk 0:00:21]} 45. Bh2 {[%clk 0:01:21]}  Qe6 {[%clk 0:00:20]} 46. Qh7+ {[%clk 0:01:18]}  Re7 {[%clk 0:00:20]} 47. Qh8 {[%clk 0:01:16]}  Qxe4 {[%clk 0:00:18]} 48. Qxf8 {[%clk 0:01:17]}  Qh1+ {[%clk 0:00:17]} 49. Ka2 {[%clk 0:01:16]}  Qxh2 {[%clk 0:00:17]} 50. a4 {[%clk 0:01:15]}  Qc7 {[%clk 0:00:16]} 0-1


[Site "https://www.chess.com"]

[Event "Titled Tuesday Blitz October 31 Early 2023"]
[White "Chigaev, Maksim"]
[Black "Danielyan, Vahe"]
[WhiteFideId "4108116"]
[BlackFideId "13304828"]
[WhiteElo "2927"]
[BlackElo "2761"]
[Result "1-0"]
[Round "10"]
[TimeControl "180+1"]
[Date "2023.10.31"]
[WhiteClock "0:01:04"]
[BlackClock "0:01:06"]
[Board "16"]

1. e4 {[%clk 0:02:56]}  c5 {[%clk 0:02:59]} 2. b3 {[%clk 0:02:55]}  d6 {[%clk 0:02:59]} 3. Bb2 {[%clk 0:02:55]}  Nf6 {[%clk 0:03:00]} 4. Bb5+ {[%clk 0:02:53]}  Bd7 {[%clk 0:02:59]} 5. Bxd7+ {[%clk 0:02:51]}  Nbxd7 {[%clk 0:03:00]} 6. Qe2 {[%clk 0:02:50]}  g6 {[%clk 0:03:01]} 7. f4 {[%clk 0:02:42]}  Bg7 {[%clk 0:02:58]} 8. Nf3 {[%clk 0:02:43]}  O-O {[%clk 0:02:58]} 9. O-O {[%clk 0:02:42]}  e6 {[%clk 0:02:56]} 10. d3 {[%clk 0:02:41]}  d5 {[%clk 0:02:55]} 11. c4 {[%clk 0:02:32]}  d4 {[%clk 0:02:54]} 12. Nbd2 {[%clk 0:02:29]}  Qc7 {[%clk 0:02:54]} 13. e5 {[%clk 0:02:25]}  Nh5 {[%clk 0:02:51]} 14. g3 {[%clk 0:02:25]}  f5 {[%clk 0:02:36]} 15. exf6 {[%clk 0:02:24]}  Ndxf6 {[%clk 0:02:34]} 16. Qxe6+ {[%clk 0:02:03]}  Kh8 {[%clk 0:02:34]} 17. Ne5 {[%clk 0:02:04]}  Rae8 {[%clk 0:02:32]} 18. Qh3 {[%clk 0:02:04]}  Ng8 {[%clk 0:02:06]} 19. Ne4 {[%clk 0:01:52]}  Bxe5 {[%clk 0:02:02]} 20. fxe5 {[%clk 0:01:53]}  Qxe5 {[%clk 0:02:02]} 21. Rae1 {[%clk 0:01:44]}  Ngf6 {[%clk 0:01:49]} 22. Bc1 {[%clk 0:01:24]}  Qc7 {[%clk 0:01:31]} 23. Bh6 {[%clk 0:01:20]}  Rf7 {[%clk 0:01:21]} 24. Nxf6 {[%clk 0:01:16]}  Rxe1 {[%clk 0:01:18]} 25. Rxe1 {[%clk 0:01:17]}  Nxf6 {[%clk 0:01:17]} 26. Qe6 {[%clk 0:01:15]}  Qd7 {[%clk 0:01:12]} 27. Qe5 {[%clk 0:01:06]}  Kg8 {[%clk 0:01:06]} 28. Qb8+ {[%clk 0:01:04]} 1-0


[Site "https://www.chess.com"]

[Event "Titled Tuesday Blitz October 31 Early 2023"]
[White "Galchenko, Matvey"]
[Black "Szpar, Milosz"]
[WhiteFideId "24175480"]
[BlackFideId "1184989"]
[WhiteElo "2922"]
[BlackElo "2728"]
[Result "0-1"]
[Round "10"]
[TimeControl "180+1"]
[Date "2023.10.31"]
[WhiteClock "0:00:00"]
[BlackClock "0:00:46"]
[Board "17"]

1. f4 {[%clk 0:02:59]}  c5 {[%clk 0:02:56]} 2. Nf3 {[%clk 0:02:59]}  Nc6 {[%clk 0:02:56]} 3. g3 {[%clk 0:02:59]}  g6 {[%clk 0:02:54]} 4. Bg2 {[%clk 0:02:59]}  Bg7 {[%clk 0:02:55]} 5. O-O {[%clk 0:03:00]}  Nf6 {[%clk 0:02:55]} 6. d3 {[%clk 0:03:01]}  O-O {[%clk 0:02:55]} 7. Nc3 {[%clk 0:03:01]}  d6 {[%clk 0:02:52]} 8. e4 {[%clk 0:03:01]}  Rb8 {[%clk 0:02:52]} 9. a4 {[%clk 0:03:01]}  a6 {[%clk 0:02:52]} 10. h3 {[%clk 0:03:01]}  b5 {[%clk 0:02:52]} 11. axb5 {[%clk 0:03:02]}  axb5 {[%clk 0:02:53]} 12. g4 {[%clk 0:03:03]}  b4 {[%clk 0:02:53]} 13. Ne2 {[%clk 0:03:04]}  c4 {[%clk 0:02:44]} 14. Ng3 {[%clk 0:02:53]}  b3 {[%clk 0:02:32]} 15. c3 {[%clk 0:02:51]}  cxd3 {[%clk 0:02:31]} 16. Qxd3 {[%clk 0:02:52]}  Nd7 {[%clk 0:02:29]} 17. Be3 {[%clk 0:02:47]}  Qc7 {[%clk 0:02:21]} 18. Qe2 {[%clk 0:02:38]}  Na5 {[%clk 0:02:17]} 19. Ra4 {[%clk 0:02:28]}  Nc5 {[%clk 0:02:12]} 20. Bxc5 {[%clk 0:02:14]}  Qxc5+ {[%clk 0:02:13]} 21. Kh2 {[%clk 0:02:15]}  Bd7 {[%clk 0:02:10]} 22. Rfa1 {[%clk 0:01:23]}  Bxa4 {[%clk 0:02:10]} 23. Rxa4 {[%clk 0:01:24]}  Bxc3 {[%clk 0:02:09]} 24. e5 {[%clk 0:01:17]}  dxe5 {[%clk 0:01:39]} 25. Ne4 {[%clk 0:01:13]}  Qc7 {[%clk 0:01:22]} 26. Nxc3 {[%clk 0:01:12]}  exf4 {[%clk 0:01:22]} 27. Nd5 {[%clk 0:01:02]}  Qc2 {[%clk 0:01:08]} 28. Qxe7 {[%clk 0:00:32]}  Nc6 {[%clk 0:01:06]} 29. Qf6 {[%clk 0:00:26]}  Rbe8 {[%clk 0:01:00]} 30. Qxf4 {[%clk 0:00:12]}  Re2 {[%clk 0:00:58]} 31. Nh4 {[%clk 0:00:06]}  Qxb2 {[%clk 0:00:53]} 32. Rc4 {[%clk 0:00:05]}  Ne5 {[%clk 0:00:52]} 33. Rb4 {[%clk 0:00:03]}  Nd3 {[%clk 0:00:52]} 34. Qh6 {[%clk 0:00:02]}  Qe5+ {[%clk 0:00:49]} 35. Rf4 {[%clk 0:00:01]}  Nxf4 {[%clk 0:00:47]} 36. Nxf4 {[%clk 0:00:00]}  b2 {[%clk 0:00:46]} 0-1


[Site "https://www.chess.com"]

[Event "Titled Tuesday Blitz October 31 Early 2023"]
[White "Krzyzanowski, Marcin"]
[Black "Erdogmus, Yagiz Kaan"]
[WhiteFideId "1132199"]
[BlackFideId "44599790"]
[WhiteElo "2747"]
[BlackElo "2907"]
[Result "1-0"]
[Round "10"]
[TimeControl "180+1"]
[Date "2023.10.31"]
[WhiteClock "0:00:28"]
[BlackClock "0:01:13"]
[Board "20"]

1. e4 {[%clk 0:03:00]}  c5 {[%clk 0:03:00]} 2. Nf3 {[%clk 0:03:00]}  d6 {[%clk 0:03:00]} 3. d4 {[%clk 0:03:01]}  cxd4 {[%clk 0:03:01]} 4. Nxd4 {[%clk 0:03:02]}  Nf6 {[%clk 0:03:01]} 5. Nc3 {[%clk 0:03:02]}  g6 {[%clk 0:02:59]} 6. Nb3 {[%clk 0:02:58]}  Bg7 {[%clk 0:02:59]} 7. Be2 {[%clk 0:02:58]}  O-O {[%clk 0:02:58]} 8. O-O {[%clk 0:02:59]}  a6 {[%clk 0:02:56]} 9. Re1 {[%clk 0:02:58]}  b5 {[%clk 0:02:54]} 10. Bf1 {[%clk 0:02:57]}  Bb7 {[%clk 0:02:54]} 11. a4 {[%clk 0:02:55]}  b4 {[%clk 0:02:44]} 12. Nd5 {[%clk 0:02:56]}  Nbd7 {[%clk 0:02:35]} 13. Nxb4 {[%clk 0:02:54]}  Nxe4 {[%clk 0:02:34]} 14. Nd5 {[%clk 0:02:49]}  e6 {[%clk 0:02:30]} 15. Rxe4 {[%clk 0:02:34]}  Bxd5 {[%clk 0:02:28]} 16. Re1 {[%clk 0:02:35]}  Qc7 {[%clk 0:02:24]} 17. a5 {[%clk 0:02:27]}  Rfc8 {[%clk 0:02:18]} 18. c3 {[%clk 0:02:27]}  Ne5 {[%clk 0:02:11]} 19. Ra4 {[%clk 0:02:11]}  Rab8 {[%clk 0:02:04]} 20. Nd4 {[%clk 0:02:07]}  Nc6 {[%clk 0:01:44]} 21. Bxa6 {[%clk 0:01:38]}  Nxd4 {[%clk 0:01:42]} 22. Rxd4 {[%clk 0:01:38]}  Bb3 {[%clk 0:01:42]} 23. Qd2 {[%clk 0:01:22]}  Bxd4 {[%clk 0:01:42]} 24. Qxd4 {[%clk 0:01:19]}  e5 {[%clk 0:01:42]} 25. Qh4 {[%clk 0:01:18]}  Re8 {[%clk 0:01:38]} 26. Bh6 {[%clk 0:01:11]}  f5 {[%clk 0:01:36]} 27. Ra1 {[%clk 0:00:58]}  Ra8 {[%clk 0:01:25]} 28. Bf1 {[%clk 0:00:42]}  Rxa5 {[%clk 0:01:20]} 29. Re1 {[%clk 0:00:33]}  Ra4 {[%clk 0:01:15]} 30. Qf6 {[%clk 0:00:28]}  Re6 {[%clk 0:01:13]} 31. Qf8# {[%clk 0:00:28]} 1-0


[Site "https://www.chess.com"]

[Event "Titled Tuesday Blitz October 31 Early 2023"]
[White "Preotu, Razvan"]
[Black "Molina, Roberto Junio Brito"]
[WhiteFideId "2613280"]
[BlackFideId "2109450"]
[WhiteElo "2707"]
[BlackElo "2830"]
[Result "1-0"]
[Round "10"]
[TimeControl "180+1"]
[Date "2023.10.31"]
[WhiteClock "0:00:04"]
[BlackClock "0:00:01"]
[Board "24"]

1. e4 {[%clk 0:03:00]}  c6 {[%clk 0:02:56]} 2. Nc3 {[%clk 0:03:00]}  d5 {[%clk 0:02:55]} 3. Nf3 {[%clk 0:03:01]}  dxe4 {[%clk 0:02:51]} 4. Nxe4 {[%clk 0:03:02]}  Bg4 {[%clk 0:02:52]} 5. h3 {[%clk 0:03:02]}  Bxf3 {[%clk 0:02:51]} 6. Qxf3 {[%clk 0:03:02]}  Nd7 {[%clk 0:02:51]} 7. d4 {[%clk 0:03:02]}  Ndf6 {[%clk 0:02:51]} 8. c3 {[%clk 0:03:02]}  Nxe4 {[%clk 0:02:51]} 9. Qxe4 {[%clk 0:03:03]}  Nf6 {[%clk 0:02:51]} 10. Qc2 {[%clk 0:03:04]}  Qd5 {[%clk 0:02:50]} 11. Qb3 {[%clk 0:02:48]}  Qxb3 {[%clk 0:02:49]} 12. axb3 {[%clk 0:02:49]}  e6 {[%clk 0:02:46]} 13. b4 {[%clk 0:02:43]}  Bd6 {[%clk 0:02:45]} 14. b5 {[%clk 0:02:35]}  c5 {[%clk 0:02:37]} 15. Be3 {[%clk 0:02:24]}  Nd5 {[%clk 0:02:36]} 16. b6 {[%clk 0:02:05]}  Nxe3 {[%clk 0:02:22]} 17. fxe3 {[%clk 0:01:47]}  a6 {[%clk 0:02:18]} 18. Be2 {[%clk 0:01:45]}  O-O-O {[%clk 0:02:10]} 19. O-O {[%clk 0:01:45]}  f5 {[%clk 0:02:00]} 20. b4 {[%clk 0:01:44]}  cxb4 {[%clk 0:01:49]} 21. c4 {[%clk 0:01:45]}  g6 {[%clk 0:01:37]} 22. c5 {[%clk 0:01:44]}  Be7 {[%clk 0:01:37]} 23. c6 {[%clk 0:00:51]}  bxc6 {[%clk 0:01:34]} 24. Rxa6 {[%clk 0:00:51]}  Kd7 {[%clk 0:01:25]} 25. Ra7+ {[%clk 0:00:31]}  Kd6 {[%clk 0:01:24]} 26. Rc1 {[%clk 0:00:32]}  Rb8 {[%clk 0:01:10]} 27. b7 {[%clk 0:00:27]}  e5 {[%clk 0:00:23]} 28. dxe5+ {[%clk 0:00:27]}  Kxe5 {[%clk 0:00:24]} 29. Rxc6 {[%clk 0:00:27]}  Rhd8 {[%clk 0:00:22]} 30. Bc4 {[%clk 0:00:27]}  Rd6 {[%clk 0:00:20]} 31. Rc8 {[%clk 0:00:22]}  Rd1+ {[%clk 0:00:20]} 32. Kf2 {[%clk 0:00:22]}  Bd6 {[%clk 0:00:19]} 33. Kf3 {[%clk 0:00:10]}  Rd2 {[%clk 0:00:11]} 34. Ra5+ {[%clk 0:00:02]}  Kf6 {[%clk 0:00:11]} 35. Bd5 {[%clk 0:00:03]}  Ke7 {[%clk 0:00:09]} 36. Rxb8 {[%clk 0:00:01]}  Bxb8 {[%clk 0:00:09]} 37. Ra8 {[%clk 0:00:02]}  Rxd5 {[%clk 0:00:10]} 38. Rxb8 {[%clk 0:00:02]}  Rb5 {[%clk 0:00:10]} 39. Rh8 {[%clk 0:00:03]}  Rxb7 {[%clk 0:00:03]} 40. Rxh7+ {[%clk 0:00:03]}  Kd6 {[%clk 0:00:04]} 41. Rxb7 {[%clk 0:00:03]}  Kc5 {[%clk 0:00:01]} 42. Kf4 {[%clk 0:00:04]} 1-0


[Site "https://www.chess.com"]

[Event "Titled Tuesday Blitz October 31 Early 2023"]
[White "Atakhan, Abtin"]
[Black "Pakleza, Zbigniew"]
[WhiteFideId "22502203"]
[BlackFideId "1119290"]
[WhiteElo "2705"]
[BlackElo "2816"]
[Result "0-1"]
[Round "10"]
[TimeControl "180+1"]
[Date "2023.10.31"]
[WhiteClock "0:00:29"]
[BlackClock "0:00:05"]
[Board "25"]

1. Nf3 {[%clk 0:03:00]}  d5 {[%clk 0:03:00]} 2. d4 {[%clk 0:03:01]}  Nf6 {[%clk 0:02:59]} 3. c4 {[%clk 0:03:01]}  c6 {[%clk 0:02:59]} 4. e3 {[%clk 0:03:01]}  Bf5 {[%clk 0:02:59]} 5. Nc3 {[%clk 0:03:02]}  e6 {[%clk 0:03:00]} 6. Nh4 {[%clk 0:03:02]}  Be4 {[%clk 0:03:00]} 7. f3 {[%clk 0:03:02]}  Bg6 {[%clk 0:03:01]} 8. Qb3 {[%clk 0:03:03]}  Qb6 {[%clk 0:03:01]} 9. Bd2 {[%clk 0:02:56]}  Qxb3 {[%clk 0:03:01]} 10. axb3 {[%clk 0:02:56]}  Bc2 {[%clk 0:03:02]} 11. Na4 {[%clk 0:02:47]}  Nbd7 {[%clk 0:02:59]} 12. g4 {[%clk 0:02:38]}  Bxb3 {[%clk 0:02:57]} 13. c5 {[%clk 0:02:38]}  g5 {[%clk 0:02:33]} 14. Ng2 {[%clk 0:02:38]}  h5 {[%clk 0:02:33]} 15. gxh5 {[%clk 0:02:33]}  Nxh5 {[%clk 0:02:30]} 16. Kf2 {[%clk 0:02:25]}  Bxa4 {[%clk 0:02:12]} 17. Rxa4 {[%clk 0:02:25]}  a6 {[%clk 0:02:11]} 18. Bc3 {[%clk 0:02:10]}  Nhf6 {[%clk 0:02:01]} 19. Bd3 {[%clk 0:02:00]}  g4 {[%clk 0:01:55]} 20. fxg4 {[%clk 0:01:22]}  Nxg4+ {[%clk 0:01:55]} 21. Kg3 {[%clk 0:01:23]}  f5 {[%clk 0:01:38]} 22. Nf4 {[%clk 0:01:10]}  Kf7 {[%clk 0:01:27]} 23. h3 {[%clk 0:01:09]}  Nxe3 {[%clk 0:01:14]} 24. Re1 {[%clk 0:01:09]}  Nc4 {[%clk 0:00:28]} 25. b3 {[%clk 0:01:09]}  Nce5 {[%clk 0:00:15]} 26. dxe5 {[%clk 0:01:05]}  Nxc5 {[%clk 0:00:16]} 27. Ra2 {[%clk 0:00:58]}  Bh6 {[%clk 0:00:15]} 28. Bb1 {[%clk 0:00:48]}  Rag8+ {[%clk 0:00:15]} 29. Kf3 {[%clk 0:00:48]}  Bxf4 {[%clk 0:00:15]} 30. Kxf4 {[%clk 0:00:49]}  Rxh3 {[%clk 0:00:13]} 31. Bxf5 {[%clk 0:00:44]}  exf5 {[%clk 0:00:14]} 32. e6+ {[%clk 0:00:28]}  Nxe6+ {[%clk 0:00:14]} 33. Ke5 {[%clk 0:00:29]}  Rxc3 {[%clk 0:00:12]} 34. Rh2 {[%clk 0:00:30]}  Ng7 {[%clk 0:00:08]} 35. Rh6 {[%clk 0:00:28]}  Re8+ {[%clk 0:00:05]} 36. Kd6 {[%clk 0:00:29]} 0-1


[Site "https://www.chess.com"]

[Event "Titled Tuesday Blitz October 31 Early 2023"]
[White "Sadykov, Ramil"]
[Black "Sokolovsky, Yahli"]
[WhiteFideId "24113590"]
[BlackFideId "2820242"]
[WhiteElo "2678"]
[BlackElo "2789"]
[Result "1/2-1/2"]
[Round "10"]
[TimeControl "180+1"]
[Date "2023.10.31"]
[WhiteClock "0:00:06"]
[BlackClock "0:00:16"]
[Board "26"]

1. e4 {[%clk 0:03:00]}  d6 {[%clk 0:02:59]} 2. d4 {[%clk 0:02:59]}  g6 {[%clk 0:02:59]} 3. c4 {[%clk 0:02:58]}  Bg7 {[%clk 0:02:55]} 4. Nc3 {[%clk 0:02:58]}  c5 {[%clk 0:02:55]} 5. d5 {[%clk 0:02:46]}  Bxc3+ {[%clk 0:02:56]} 6. bxc3 {[%clk 0:02:44]}  e5 {[%clk 0:02:56]} 7. h4 {[%clk 0:02:34]}  h6 {[%clk 0:02:43]} 8. h5 {[%clk 0:02:28]}  g5 {[%clk 0:02:43]} 9. Ne2 {[%clk 0:02:17]}  Ne7 {[%clk 0:02:17]} 10. Ng3 {[%clk 0:02:16]}  Nd7 {[%clk 0:02:14]} 11. a4 {[%clk 0:02:11]}  a5 {[%clk 0:02:09]} 12. Be2 {[%clk 0:02:04]}  b6 {[%clk 0:02:08]} 13. Bg4 {[%clk 0:02:00]}  Nf6 {[%clk 0:02:09]} 14. Bxc8 {[%clk 0:01:56]}  Qxc8 {[%clk 0:02:09]} 15. Rb1 {[%clk 0:01:54]}  Rb8 {[%clk 0:02:09]} 16. Qf3 {[%clk 0:01:50]}  Nfg8 {[%clk 0:02:04]} 17. Be3 {[%clk 0:01:36]}  Kf8 {[%clk 0:01:50]} 18. Kd2 {[%clk 0:01:11]}  Kg7 {[%clk 0:01:50]} 19. Rb5 {[%clk 0:01:05]}  Nf6 {[%clk 0:01:42]} 20. Rhb1 {[%clk 0:01:04]}  Qc7 {[%clk 0:01:21]} 21. Nf5+ {[%clk 0:00:59]}  Nxf5 {[%clk 0:01:21]} 22. Qxf5 {[%clk 0:01:00]}  Ng8 {[%clk 0:00:30]} 23. Kd3 {[%clk 0:00:36]}  Ne7 {[%clk 0:00:30]} 24. Qf3 {[%clk 0:00:25]}  Rb7 {[%clk 0:00:28]} 25. Qg4 {[%clk 0:00:18]}  Rhb8 {[%clk 0:00:19]} 26. f3 {[%clk 0:00:10]}  Qc8 {[%clk 0:00:17]} 27. Qxc8 {[%clk 0:00:08]}  Nxc8 {[%clk 0:00:17]} 28. g4 {[%clk 0:00:07]}  Kf6 {[%clk 0:00:12]} 29. R5b3 {[%clk 0:00:06]}  Ke7 {[%clk 0:00:12]} 30. Kc2 {[%clk 0:00:06]}  Rd7 {[%clk 0:00:10]} 31. Rb5 {[%clk 0:00:05]}  Rbb7 {[%clk 0:00:07]} 32. Kd3 {[%clk 0:00:04]}  Kd8 {[%clk 0:00:07]} 33. Kc2 {[%clk 0:00:04]}  Kc7 {[%clk 0:00:08]} 34. Kd3 {[%clk 0:00:05]}  Kb8 {[%clk 0:00:08]} 35. R5b3 {[%clk 0:00:04]}  Ka7 {[%clk 0:00:09]} 36. Rb5 {[%clk 0:00:04]}  Ka6 {[%clk 0:00:10]} 37. R5b3 {[%clk 0:00:04]}  Rbc7 {[%clk 0:00:10]} 38. Rb5 {[%clk 0:00:04]}  Rd8 {[%clk 0:00:11]} 39. R5b3 {[%clk 0:00:04]}  Re8 {[%clk 0:00:11]} 40. Rb5 {[%clk 0:00:04]}  Rf8 {[%clk 0:00:12]} 41. R5b3 {[%clk 0:00:04]}  Rb7 {[%clk 0:00:12]} 42. Rb5 {[%clk 0:00:04]}  Re8 {[%clk 0:00:12]} 43. R5b3 {[%clk 0:00:05]}  Ree7 {[%clk 0:00:13]} 44. Rb5 {[%clk 0:00:05]}  Red7 {[%clk 0:00:14]} 45. R5b3 {[%clk 0:00:05]}  Rdc7 {[%clk 0:00:15]} 46. Rb5 {[%clk 0:00:06]}  Rd7 {[%clk 0:00:16]} 1/2-1/2


[Site "https://www.chess.com"]

[Event "Titled Tuesday Blitz October 31 Early 2023"]
[White "Saydaliev, Saidakbar"]
[Black "Bao, Qilin"]
[WhiteFideId "14203693"]
[BlackFideId "8605750"]
[WhiteElo "2780"]
[BlackElo "2666"]
[Result "1-0"]
[Round "10"]
[TimeControl "180+1"]
[Date "2023.10.31"]
[WhiteClock "0:00:36"]
[BlackClock "0:00:03"]
[Board "27"]

1. c4 {[%clk 0:02:55]}  g6 {[%clk 0:02:59]} 2. Nf3 {[%clk 0:02:55]}  c5 {[%clk 0:02:58]} 3. Nc3 {[%clk 0:02:54]}  Bg7 {[%clk 0:02:59]} 4. d4 {[%clk 0:02:54]}  Nf6 {[%clk 0:02:51]} 5. e4 {[%clk 0:02:53]}  O-O {[%clk 0:02:50]} 6. d5 {[%clk 0:02:48]}  d6 {[%clk 0:02:49]} 7. h3 {[%clk 0:02:49]}  e6 {[%clk 0:02:49]} 8. Bd3 {[%clk 0:02:48]}  exd5 {[%clk 0:02:49]} 9. cxd5 {[%clk 0:02:49]}  Na6 {[%clk 0:02:39]} 10. O-O {[%clk 0:02:44]}  Nc7 {[%clk 0:02:39]} 11. a4 {[%clk 0:02:44]}  b6 {[%clk 0:02:39]} 12. Bf4 {[%clk 0:02:43]}  Ba6 {[%clk 0:02:38]} 13. Re1 {[%clk 0:02:42]}  Bxd3 {[%clk 0:02:35]} 14. Qxd3 {[%clk 0:02:43]}  a6 {[%clk 0:02:35]} 15. Nd2 {[%clk 0:02:37]}  Nh5 {[%clk 0:01:42]} 16. Bh2 {[%clk 0:02:34]}  Be5 {[%clk 0:01:42]} 17. Bxe5 {[%clk 0:02:29]}  dxe5 {[%clk 0:01:43]} 18. Nc4 {[%clk 0:02:30]}  f6 {[%clk 0:01:41]} 19. Nxb6 {[%clk 0:02:30]}  Rb8 {[%clk 0:01:39]} 20. Nc4 {[%clk 0:02:30]}  Nf4 {[%clk 0:01:39]} 21. Qe3 {[%clk 0:02:19]}  Rb4 {[%clk 0:01:35]} 22. Qxc5 {[%clk 0:02:06]}  Nd3 {[%clk 0:01:34]} 23. Qc6 {[%clk 0:02:06]}  Nxe1 {[%clk 0:01:28]} 24. Rxe1 {[%clk 0:02:07]}  Ne8 {[%clk 0:01:24]} 25. d6 {[%clk 0:02:03]}  Rf7 {[%clk 0:01:21]} 26. Nd5 {[%clk 0:01:59]}  Rxc4 {[%clk 0:01:22]} 27. Qxc4 {[%clk 0:01:55]}  Qxd6 {[%clk 0:01:22]} 28. Rd1 {[%clk 0:01:53]}  Kg7 {[%clk 0:01:20]} 29. Rd3 {[%clk 0:01:49]}  Qe6 {[%clk 0:01:10]} 30. b4 {[%clk 0:01:46]}  Rc7 {[%clk 0:01:01]} 31. Qb3 {[%clk 0:01:37]}  Rc1+ {[%clk 0:01:01]} 32. Kh2 {[%clk 0:01:37]}  Nd6 {[%clk 0:01:01]} 33. f3 {[%clk 0:01:20]}  Nc4 {[%clk 0:00:58]} 34. Ne3 {[%clk 0:01:18]}  Qb6 {[%clk 0:00:39]} 35. Rd7+ {[%clk 0:00:57]}  Kh8 {[%clk 0:00:28]} 36. Nd1 {[%clk 0:00:41]}  Qc6 {[%clk 0:00:07]} 37. Qd3 {[%clk 0:00:39]}  Nb6 {[%clk 0:00:05]} 38. Rd8+ {[%clk 0:00:39]}  Kg7 {[%clk 0:00:05]} 39. Qxa6 {[%clk 0:00:39]}  Qc7 {[%clk 0:00:03]} 40. Rd3 {[%clk 0:00:37]}  Nc4 {[%clk 0:00:03]} 41. Qe6 {[%clk 0:00:35]}  Nb2 {[%clk 0:00:03]} 42. Rd7+ {[%clk 0:00:35]}  Qxd7 {[%clk 0:00:04]} 43. Qxd7+ {[%clk 0:00:36]}  Kh6 {[%clk 0:00:03]} 44. Nxb2 {[%clk 0:00:36]} 1-0


[Site "https://www.chess.com"]